[Event "Marienbad B1-IM 2024"]
[Site "Marianske Lazne"]
[Date "2024.01.13"]
[Round "1.11"]
[White "Ashwath, R.."]
[Black "Jurek, Josef"]
[Result "1/2-1/2"]
[ECO "A05"]
[WhiteElo "2284"]
[BlackElo "2242"]
[Annotator "TA"]
[PlyCount "31"]
[EventDate "2024.01.10"]
[EventType "tourn"]
[EventCountry "CZE"]
[SourceTitle "playchess.com"]
[Source "ChessBase"]
[SourceQuality "1"]
[TimeControl "40/5400+30:1800+30"]

{[%evp 19,31,18,29,2,4,0,4,-22,0,-10,10,-13,10,0]} 1. Nf3 {[%emt 0:11:38]} Nf6 {[%emt 0:00:23]} 2. c4 {[%emt 0:00:12]} e6 {[%emt 0:00:34]} 3. g3 {[%emt 0:00:31]} b6 {[%emt 0:00:38]} 4. Bg2 {[%emt 0:00:08]} Bb7 {[%emt 0:00:13]} 5. O-O {[%emt 0:00:12]} c5 {[%emt 0:00:44]} 6. d4 {[%emt 0:00:25]} cxd4 {[%emt 0:00:26]} 7. Qxd4 {[%emt 0:00:09]} d6 {[%emt 0:02:58]} 8. Bg5 {[%emt 0:06:05]} Nbd7 {[%emt 0:01:24]} 9. Rd1 {[%emt 0:01:53]} Be7 {[%emt 0:02:02]} 10. Nc3 {[%emt 0:01:42]} a6 {[%emt 0:00:35]} 11. Ne1 {[%emt 0:01:26][%cal Bf3e1,Be1g2,Bg2e3][%mdl 32]} Bxg2 {[%emt 0:01:01] The position is equal.} 12. Nxg2 {[%emt 0:00:20]} O-O {[%emt 0:01:17]} 13. Ne3 {[%emt 0:01:50]} Rc8 {[%emt 0:06:29]} 14. Rac1 {[%emt 0:12:33]} Re8 {[%emt 0:03:58]} 15. h4 {[%emt 0:17:43]} Qc7 {[%emt 0:03:29]} 16. Bxf6 {[%emt 0:12:37] An uneventful encounter.   Weighted Error Value: White=0.21 (precise) /Black=0.13 (very precise) .  Inaccurate:     	White=1     	---        OK:         	---       	Black=1} 1/2-1/2

[Event "Marienbad B1-IM 2024"]
[Site "Marianske Lazne"]
[Date "2024.01.13"]
[Round "1.12"]
[White "Rasmussen, Casper"]
[Black "Zdybel, Przemyslaw"]
[Result "0-1"]
[ECO "D25"]
[WhiteElo "2265"]
[BlackElo "2180"]
[Annotator "ChessBase"]
[PlyCount "90"]
[EventDate "2024.01.10"]
[EventType "tourn"]
[EventCountry "CZE"]
[SourceTitle "playchess.com"]
[Source "ChessBase"]
[SourceQuality "1"]
[TimeControl "40/5400+30:1800+30"]

1. Nf3 {[%emt 0:00:09]} d5 {[%emt 0:00:57]} 2. d4 {[%emt 0:00:06]} Nf6 {[%emt 0:01:22]} 3. c4 {[%emt 0:00:39]} dxc4 {[%emt 0:06:32]} 4. e3 {[%emt 0:00:43]} a6 {[%emt 0:07:26]} 5. Bxc4 {[%emt 0:00:30]} e6 {[%emt 0:00:16]} 6. O-O {[%emt 0:00:27]} Be7 {[%emt 0:00:55]} 7. Qe2 {[%emt 0:02:38]} O-O {[%emt 0:02:07]} 8. Rd1 {[%emt 0:01:45]} b5 {[%emt 0:12:48]} 9. Bb3 {[%emt 0:00:53]} Bb7 {[%emt 0:10:06]} 10. a4 {[%emt 0:02:29]} b4 {[%emt 0:04:56]} 11. a5 {[%emt 0:05:06]} Nbd7 {[%emt 0:01:24]} 12. Nbd2 {[%emt 0:04:06]} c5 {[%emt 0:01:13]} 13. Nc4 {[%emt 0:05:14]} Bd5 {[%emt 0:03:54]} 14. Nfe5 {[%emt 0:03:17]} Qc7 {[%emt 0:06:30]} 15. Nxd7 {[%emt 0:05:07]} Nxd7 {[%emt 0:00:05]} 16. e4 {[%emt 0:00:56]} Bb7 {[%emt 0:07:51]} 17. d5 {[%emt 0:09:58]} exd5 {[%emt 0:00:08]} 18. exd5 {[%emt 0:00:09]} Rfe8 {[%emt 0:00:03]} 19. Qc2 {[%emt 0:04:24]} Nf6 {[%emt 0:04:38]} 20. Nb6 {[%emt 0:13:13]} Rad8 {[%emt 0:01:54]} 21. g3 {[%emt 0:00:01]} Qe5 {[%emt 0:07:39]} 22. Bf4 {[%emt 0:05:36]} Qh5 {[%emt 0:00:05]} 23. Bc7 {[%emt 0:03:48]} Ng4 {[%emt 0:06:30]} 24. h4 {[%emt 0:00:29]} c4 {[%emt 0:01:30]} 25. Qxc4 {[%emt 0:05:21]} Nxf2 {[%emt 0:03:38]} 26. Rf1 {[%emt 0:10:35]} Ne4 {[%emt 0:04:18]} 27. d6 {[%emt 0:05:21]} Bf6 {[%emt 0:00:52]} 28. d7 {[%emt 0:03:31]} Rf8 {[%emt 0:01:11]} 29. Rad1 {[%emt 0:00:44]} Qg4 {[%emt 0:01:50]} 30. Rd3 {[%emt 0:02:44]} Qh3 {[%emt 0:01:22]} 31. Rff3 {[%emt 0:02:05]} Nd2 {[%emt 0:00:50]} 32. Rxd2 {[%emt 0:00:17]} Bxf3 {[%emt 0:00:07]} 33. Rh2 {[%emt 0:00:41]} Qf5 {[%emt 0:00:21]} 34. Bc2 {[%emt 0:00:42]} Qxa5 {[%emt 0:00:44]} 35. Qd3 {[%emt 0:00:15]} Qh5 {[%emt 0:00:49]} 36. Rf2 {[%emt 0:01:20]} Bg4 {[%emt 0:01:05]} 37. Rf4 {[%emt 0:02:38]} Rxd7 {[%emt 0:00:31]} 38. Nxd7 {[%emt 0:00:22]} Bxd7 {[%emt 0:00:02]} 39. Bd6 Re8 {[%emt 0:00:40]} 40. Bxb4 {[%emt 0:01:31]} Bb5 {[%emt 0:00:40]} 41. Qd1 {[%emt 0:17:58]} Qe5 {[%emt 0:03:15]} 42. b3 {[%emt 0:05:42]} Qe3+ {[%emt 0:15:47]} 43. Kh2 {[%emt 0:00:39]} Bc6 {[%emt 0:01:19]} 44. Qg1 {[%emt 0:07:46]} Qe2+ {[%emt 0:01:02]} 45. Rf2 {[%emt 0:00:34]} Bd4 0-1

[Event "Marienbad B1-IM 2024"]
[Site "Marianske Lazne"]
[Date "2024.01.13"]
[Round "1.13"]
[White "Ochedzan, Tymon"]
[Black "Kulkarni Bhakti"]
[Result "1/2-1/2"]
[ECO "C72"]
[WhiteElo "2166"]
[BlackElo "2364"]
[Annotator "ChessBase"]
[PlyCount "79"]
[EventDate "2024.01.10"]
[EventType "tourn"]
[EventCountry "CZE"]
[SourceTitle "playchess.com"]
[Source "ChessBase"]
[SourceQuality "1"]
[TimeControl "40/5400+30:1800+30"]

1. e4 {[%emt 0:00:02]} e5 {[%emt 0:01:29]} 2. Nf3 {[%emt 0:00:05]} Nc6 {[%emt 0:00:12]} 3. Bb5 {[%emt 0:00:06]} a6 {[%emt 0:01:01]} 4. Ba4 {[%emt 0:00:10]} d6 {[%emt 0:00:55]} 5. O-O {[%emt 0:00:26]} Bd7 {[%emt 0:00:21]} 6. c4 {[%emt 0:00:51]} Be7 {[%emt 0:00:53]} 7. Nc3 {[%emt 0:02:27]} Nf6 {[%emt 0:00:56]} 8. Bxc6 {[%emt 0:01:10]} bxc6 {[%emt 0:03:50]} 9. d4 {[%emt 0:00:38]} exd4 {[%emt 0:00:49]} 10. Qxd4 {[%emt 0:00:23]} c5 {[%emt 0:05:57]} 11. Qd3 {[%emt 0:02:00]} Bc6 {[%emt 0:09:23]} 12. Bf4 {[%emt 0:02:51]} O-O {[%emt 0:03:16]} 13. Rfe1 {[%emt 0:00:50]} Qd7 {[%emt 0:04:11]} 14. h3 {[%emt 0:02:37]} Rad8 {[%emt 0:01:55]} 15. Re2 {[%emt 0:10:42]} Rfe8 {[%emt 0:06:26]} 16. Rae1 {[%emt 0:02:07]} Qc8 {[%emt 0:06:40]} 17. Nd5 {[%emt 0:07:46]} h6 {[%emt 0:03:22]} 18. Bd2 {[%emt 0:09:22]} Bb7 {[%emt 0:06:11]} 19. Bc3 {[%emt 0:09:41]} Nh5 {[%emt 0:09:04]} 20. Qd2 {[%emt 0:03:02]} Bxd5 {[%emt 0:04:52]} 21. exd5 {[%emt 0:01:23]} Bf6 {[%emt 0:04:27]} 22. Ba5 {[%emt 0:04:50]} Rxe2 {[%emt 0:03:07]} 23. Rxe2 {[%emt 0:00:44]} g5 {[%emt 0:05:04]} 24. Re4 {[%emt 0:04:39]} Nf4 {[%emt 0:03:42]} 25. Rxf4 {[%emt 0:09:52]} gxf4 {[%emt 0:00:03]} 26. Qxf4 {[%emt 0:00:07]} Bxb2 {[%emt 0:07:08]} 27. Nh4 {[%emt 0:01:40]} Be5 {[%emt 0:00:16]} 28. Qxh6 {[%emt 0:01:54]} Qb8 {[%emt 0:00:30]} 29. Qg5+ {[%emt 0:00:30]} Kf8 {[%emt 0:02:55]} 30. f4 {[%emt 0:06:20]} Bd4+ {[%emt 0:00:56]} 31. Kh2 {[%emt 0:00:09]} Re8 {[%emt 0:01:01]} 32. Nf5 {[%emt 0:01:52]} Qb1 {[%emt 0:04:23]} 33. Bxc7 {[%emt 0:07:03]} Qg1+ {[%emt 0:00:06]} 34. Kg3 {[%emt 0:00:08]} Qf2+ {[%emt 0:00:10]} 35. Kg4 {[%emt 0:02:58]} Qxg2+ {[%emt 0:00:16]} 36. Ng3 {[%emt 0:00:15]} Re3 {[%emt 0:00:55]} 37. Qd8+ {[%emt 0:00:30]} Kg7 {[%emt 0:00:06]} 38. Qg5+ {[%emt 0:01:42]} Kh7 {[%emt 0:00:30]} 39. Qh4+ {[%emt 0:00:30]} Kg8 {[%emt 0:00:34]} 40. Qd8+ {[%emt 0:00:18]} 1/2-1/2

[Event "Marienbad B1-IM 2024"]
[Site "Marianske Lazne"]
[Date "2024.01.13"]
[Round "1.14"]
[White "Ni, Viktorija"]
[Black "Hak, David"]
[Result "1-0"]
[ECO "A45"]
[WhiteElo "2138"]
[BlackElo "2310"]
[Annotator "ChessBase"]
[PlyCount "85"]
[EventDate "2024.01.10"]
[EventType "tourn"]
[EventCountry "CZE"]
[SourceTitle "playchess.com"]
[Source "ChessBase"]
[SourceQuality "1"]
[TimeControl "40/5400+30:1800+30"]

1. d4 {[%emt 0:00:30]} Nf6 {[%emt 0:00:05]} 2. Bg5 {[%emt 0:00:36]} e6 {[%emt 0:01:01]} 3. e4 {[%emt 0:02:07]} h6 {[%emt 0:00:19]} 4. Bxf6 {[%emt 0:00:05]} Qxf6 {[%emt 0:00:06]} 5. c3 {[%emt 0:03:51]} e5 {[%emt 0:09:46]} 6. Nf3 {[%emt 0:15:58]} Nc6 {[%emt 0:02:08]} 7. Bd3 {[%emt 0:04:19]} exd4 {[%emt 0:07:10]} 8. e5 {[%emt 0:05:28]} Qf4 {[%emt 0:01:47]} 9. O-O {[%emt 0:03:04]} Bc5 {[%emt 0:12:12]} 10. b4 {[%emt 0:03:55]} Bb6 {[%emt 0:12:49]} 11. b5 {[%emt 0:01:48]} Ne7 {[%emt 0:00:58]} 12. c4 {[%emt 0:09:40]} d5 {[%emt 0:07:42]} 13. exd6 {[%emt 0:02:45]} Qxd6 {[%emt 0:00:26]} 14. Nbd2 {[%emt 0:00:21]} Bg4 {[%emt 0:10:05]} 15. a4 {[%emt 0:09:39]} Ba5 {[%emt 0:04:43]} 16. c5 {[%emt 0:08:21]} Qf4 {[%emt 0:03:07]} 17. Qc2 {[%emt 0:02:37]} O-O {[%emt 0:01:28]} 18. h3 {[%emt 0:03:19]} Bxf3 {[%emt 0:08:21]} 19. Nxf3 {[%emt 0:00:05]} Bc3 {[%emt 0:02:20]} 20. Ra3 {[%emt 0:04:04]} Nd5 {[%emt 0:02:18]} 21. Be4 {[%emt 0:01:09]} Nb4 {[%emt 0:01:05]} 22. Qb1 {[%emt 0:00:06]} Rfe8 {[%emt 0:00:18]} 23. Bxb7 {[%emt 0:05:34]} Rab8 {[%emt 0:00:12]} 24. c6 {[%emt 0:01:39]} Qd6 {[%emt 0:04:29]} 25. a5 {[%emt 0:02:13]} Nxc6 {[%emt 0:02:44]} 26. Rxc3 {[%emt 0:00:52]} Nxa5 {[%emt 0:01:05]} 27. Rc6 {[%emt 0:05:32]} Qf4 {[%emt 0:01:55]} 28. Rd1 {[%emt 0:02:27]} Red8 {[%emt 0:00:15]} 29. Qd3 {[%emt 0:01:40]} Nxb7 {[%emt 0:01:03]} 30. g3 {[%emt 0:00:20]} Nc5 {[%emt 0:02:07]} 31. Rxc5 {[%emt 0:00:28]} Qd6 {[%emt 0:00:20]} 32. Qc4 {[%emt 0:00:47]} Qf6 {[%emt 0:01:14]} 33. Kg2 {[%emt 0:00:05]} Rd7 {[%emt 0:00:31]} 34. Rxd4 {[%emt 0:00:17]} Rxd4 {[%emt 0:00:32]} 35. Qxd4 {[%emt 0:00:05]} Qe7 {[%emt 0:00:18]} 36. Rd5 {[%emt 0:00:56]} Re8 {[%emt 0:00:53]} 37. Rd7 {[%emt 0:00:48]} Qe2 {[%emt 0:00:19]} 38. Qd5 {[%emt 0:00:19]} Re6 {[%emt 0:00:30]} 39. Rd8+ {[%emt 0:00:09]} Kh7 {[%emt 0:00:04]} 40. Qf5+ {[%emt 0:00:10]} Rg6 {[%emt 0:00:07]} 41. Nh4 {[%emt 0:31:13]} Qe7 {[%emt 0:30:41]} 42. Rd5 {[%emt 0:00:54]} Qxh4 {[%emt 0:00:53]} 43. Qxg6+ {[%emt 0:00:07]} 1-0

[Event "Marienbad B1-IM 2024"]
[Site "Marianske Lazne"]
[Date "2024.01.13"]
[Round "1.15"]
[White "Lima, Stefan Moisei VIeira"]
[Black "Dobrowolski, Piotr"]
[Result "1/2-1/2"]
[ECO "E10"]
[WhiteElo "2173"]
[BlackElo "2401"]
[Annotator "RC"]
[PlyCount "82"]
[EventDate "2024.01.10"]
[EventType "tourn"]
[EventCountry "CZE"]
[SourceTitle "playchess.com"]
[Source "ChessBase"]
[SourceQuality "1"]
[TimeControl "40/5400+30:1800+30"]

1. d4 {[%emt 0:00:09]} Nf6 {[%emt 0:00:44]} 2. c4 {[%emt 0:00:19]} e6 {[%emt 0:00:49]} 3. Nf3 {[%emt 0:00:21]} c5 {[%emt 0:00:51]} 4. g3 {[%emt 0:05:12]} cxd4 {[%emt 0:01:09]} 5. Nxd4 {[%emt 0:00:48]} d5 {[%emt 0:00:44]} 6. Bg2 {[%emt 0:01:42]} e5 {[%emt 0:00:59]} 7. Nf3 {[%emt 0:00:59]} d4 {[%emt 0:00:57]} 8. O-O {[%emt 0:01:11]} Nc6 {[%emt 0:00:30]} 9. e3 {[%emt 0:03:28]} Bc5 {[%emt 0:05:49]} 10. exd4 {[%emt 0:04:13]} exd4 {[%emt 0:00:30]} 11. Re1+ {[%emt 0:00:11]} Be6 {[%emt 0:00:47]} 12. Ng5 {[%emt 0:02:52]} O-O {[%emt 0:02:07]} 13. Nxe6 {[%emt 0:02:07]} fxe6 {[%emt 0:00:08]} 14. Nd2 {[%emt 0:00:32]} Qd6 {[%emt 0:06:16]} 15. Ne4 {[%emt 0:24:13]} Nxe4 {[%emt 0:00:20]} 16. Bxe4 {[%emt 0:00:35]} e5 {[%emt 0:18:35]} 17. a3 {[%emt 0:07:55]} a5 {[%emt 0:02:10]} 18. Qd3 {[%emt 0:01:13]} h6 {[%emt 0:00:50]} 19. Bd2 {[%emt 0:01:55]} Kh8 {[%emt 0:00:19]} 20. Re2 {[%emt 0:02:49]} Qf6 {[%emt 0:04:21]} 21. Rae1 {[%emt 0:02:07]} Bd6 {[%emt 0:02:41]} 22. Kh1 {[%emt 0:04:59]} a4 {[%emt 0:10:32]} 23. g4 {[%emt 0:03:03]} Qh4 {[%emt 0:02:15]} 24. f3 {[%emt 0:01:43]} Ra6 {[%emt 0:05:59]} 25. Rg1 {[%emt 0:02:48]} Ne7 {[%emt 0:10:49]} 26. g5 {[%emt 0:04:04]} Bc5 {[%emt 0:10:18]} 27. gxh6 {[%emt 0:01:54]} gxh6 {[%emt 0:00:16]} 28. Reg2 {[%emt 0:00:27]} Qf6 {[%emt 0:00:57]} 29. Rg3 {[%emt 0:04:29]} Rg8 {[%emt 0:02:10]} 30. Rxg8+ {[%emt 0:02:46]} Nxg8 {[%emt 0:00:02]} 31. Rg3 {[%emt 0:03:57]} Rb6 {[%emt 0:01:40]} 32. Bd5 {[%emt 0:01:36]} Ne7 {[%emt 0:00:19]} 33. Ba5 {[%emt 0:04:03]} Rb3 {[%emt 0:04:54]} 34. Qe4 {[%emt 0:02:03]} Re3 {[%emt 0:01:09]} 35. Qg4 {[%emt 0:01:10]} d3 {[%emt 0:01:30]} 36. Bd2 {[%emt 0:02:37]} Re2 {[%emt 0:00:48]} 37. Qd7 {[%emt 0:00:45]} Qf8 {[%emt 0:00:14]} 38. Qe6 {[%emt 0:01:04]} Nxd5 {[%emt 0:01:12]} 39. cxd5 {[%emt 0:00:35]} Rxd2 {[%emt 0:01:32]} 40. Qxe5+ {[%emt 0:00:06]} Kh7 {[%emt 0:00:03]} 41. Qe4+ {[%emt 0:30:10]} Kh8 1/2-1/2

[Event "Marienbad B1-IM 2024"]
[Site "Marianske Lazne"]
[Date "2024.01.14"]
[Round "2.11"]
[White "Jurek, Josef"]
[Black "Dobrowolski, Piotr"]
[Result "0-1"]
[ECO "A35"]
[WhiteElo "2242"]
[BlackElo "2401"]
[Annotator "RC"]
[PlyCount "62"]
[EventDate "2024.01.10"]
[EventType "tourn"]
[EventCountry "CZE"]
[SourceTitle "playchess.com"]
[Source "ChessBase"]
[SourceQuality "1"]
[TimeControl "40/5400+30:1800+30"]

1. Nf3 {[%emt 0:00:11]} c5 {[%emt 0:00:22]} 2. c4 {[%emt 0:00:32]} Nc6 {[%emt 0:00:27]} 3. Nc3 {[%emt 0:01:19]} Nf6 {[%emt 0:01:11]} 4. g3 {[%emt 0:01:08]} e6 {[%emt 0:03:04]} 5. Bg2 {[%emt 0:00:59]} d5 {[%emt 0:00:25]} 6. cxd5 {[%emt 0:00:13]} exd5 {[%emt 0:00:12]} 7. d4 {[%emt 0:00:29]} cxd4 {[%emt 0:00:42]} 8. Nxd4 {[%emt 0:00:19]} Bc5 {[%emt 0:00:39]} 9. Nxc6 {[%emt 0:04:08]} bxc6 {[%emt 0:00:12]} 10. O-O {[%emt 0:02:02]} O-O {[%emt 0:04:20]} 11. Qc2 {[%emt 0:03:59]} Bb6 {[%emt 0:01:07]} 12. Bf4 {[%emt 0:11:47]} Re8 {[%emt 0:01:59]} 13. e4 {[%emt 0:03:27]} Ba6 {[%emt 0:07:02]} 14. Rfe1 {[%emt 0:06:10]} Ng4 {[%emt 0:03:25]} 15. Nd1 {[%emt 0:03:05]} g5 {[%emt 0:01:44]} 16. Bd2 {[%emt 0:12:08]} Qf6 {[%emt 0:05:18]} 17. Bc3 {[%emt 0:05:22]} d4 {[%emt 0:02:15]} 18. Bb4 {[%emt 0:01:33]} Ne5 {[%emt 0:08:24]} 19. Bd2 {[%emt 0:04:02]} Bd3 {[%emt 0:24:37]} 20. Qa4 {[%emt 0:13:14]} Nf3+ {[%emt 0:03:52]} 21. Bxf3 {[%emt 0:00:29]} Qxf3 {[%emt 0:00:04]} 22. Qxc6 {[%emt 0:02:56]} Bxe4 {[%emt 0:01:33]} 23. Rxe4 {[%emt 0:00:19]} Qxe4 {[%emt 0:00:04]} 24. Qxe4 {[%emt 0:00:40]} Rxe4 {[%emt 0:00:06]} 25. Bxg5 {[%emt 0:00:37]} Re1+ {[%emt 0:01:41]} 26. Kg2 {[%emt 0:00:09]} Rc8 {[%emt 0:00:19]} 27. b4 {[%emt 0:02:40]} Rc2 {[%emt 0:01:21]} 28. a4 {[%emt 0:01:35]} d3 {[%emt 0:02:13]} 29. a5 {[%emt 0:00:56]} Bxf2 {[%emt 0:00:36]} 30. Kf3 {[%emt 0:01:45]} Bd4 {[%emt 0:02:33]} 31. Rb1 {[%emt 0:00:35]} f5 {[%emt 0:00:19]} 0-1

[Event "Marienbad B1-IM 2024"]
[Site "Marianske Lazne"]
[Date "2024.01.14"]
[Round "2.12"]
[White "Hak, David"]
[Black "Lima, Stefan Moisei VIeira"]
[Result "1/2-1/2"]
[ECO "C45"]
[WhiteElo "2310"]
[BlackElo "2173"]
[Annotator "RC"]
[PlyCount "143"]
[EventDate "2024.01.10"]
[EventType "tourn"]
[EventCountry "CZE"]
[SourceTitle "playchess.com"]
[Source "ChessBase"]
[SourceQuality "1"]
[TimeControl "40/5400+30:1800+30"]

1. e4 {[%emt 0:02:51]} e5 {[%emt 0:02:59]} 2. Nf3 {[%emt 0:00:06]} Nc6 {[%emt 0:00:08]} 3. d4 {[%emt 0:00:03]} exd4 {[%emt 0:00:08]} 4. Nxd4 {[%emt 0:00:05]} Nf6 {[%emt 0:01:57]} 5. Nxc6 {[%emt 0:00:09]} bxc6 {[%emt 0:00:07]} 6. e5 {[%emt 0:00:07]} Qe7 {[%emt 0:00:06]} 7. Qe2 {[%emt 0:00:08]} Nd5 {[%emt 0:00:09]} 8. h4 {[%emt 0:00:17]} Qe6 {[%emt 0:05:44]} 9. g3 {[%emt 0:18:53]} d6 {[%emt 0:03:01]} 10. exd6 {[%emt 0:07:46]} Bxd6 {[%emt 0:02:09]} 11. Bd2 {[%emt 0:34:44]} Rb8 {[%emt 0:04:17]} 12. c4 {[%emt 0:07:42]} Nb4 {[%emt 0:07:29]} 13. Kd1 {[%emt 0:09:38]} c5 {[%emt 0:07:30]} 14. Nc3 {[%emt 0:04:32]} O-O {[%emt 0:04:53]} 15. Qxe6 {[%emt 0:00:12]} Bxe6 {[%emt 0:00:15]} 16. Nb5 {[%emt 0:02:21]} Be5 {[%emt 0:08:55]} 17. Kc1 {[%emt 0:03:02]} a6 {[%emt 0:05:06]} 18. Bc3 {[%emt 0:01:59]} Bxc4 {[%emt 0:20:02]} 19. Bxc4 {[%emt 0:00:33]} axb5 {[%emt 0:00:10]} 20. Bxe5 {[%emt 0:01:18]} bxc4 {[%emt 0:00:08]} 21. Bxc7 {[%emt 0:01:28]} Rb7 {[%emt 0:02:55]} 22. Bf4 {[%emt 0:01:46]} Nd3+ {[%emt 0:07:51]} 23. Kc2 {[%emt 0:00:06]} Rxb2+ {[%emt 0:00:54]} 24. Kc3 {[%emt 0:00:07]} Rxf2 {[%emt 0:00:17]} 25. Bd6 {[%emt 0:02:28]} Rd8 {[%emt 0:01:15]} 26. Rhb1 {[%emt 0:00:19]} f5 {[%emt 0:02:30]} 27. Rb8 {[%emt 0:00:20]} Rxb8 {[%emt 0:00:10]} 28. Bxb8 {[%emt 0:00:01]} Nb4 {[%emt 0:01:46]} 29. Kxc4 {[%emt 0:00:09]} Nxa2 {[%emt 0:05:32]} 30. Bd6 {[%emt 0:01:09]} Rd2 {[%emt 0:02:45]} 31. Bxc5 {[%emt 0:00:35]} Rc2+ {[%emt 0:00:10]} 32. Kd5 {[%emt 0:00:46]} Kf7 {[%emt 0:00:40]} 33. Bd6 {[%emt 0:00:44]} Kg6 {[%emt 0:01:26]} 34. Bf4 {[%emt 0:00:20]} Nc3+ {[%emt 0:01:07]} 35. Ke5 {[%emt 0:00:11]} Re2+ {[%emt 0:00:26]} 36. Kd4 {[%emt 0:00:11]} Ne4 {[%emt 0:00:12]} 37. Ra6+ {[%emt 0:00:32]} Nf6 {[%emt 0:00:16]} 38. Kd3 {[%emt 0:00:25]} Re1 {[%emt 0:01:55]} 39. Kd2 {[%emt 0:00:43]} Re7 {[%emt 0:00:57]} 40. Kd3 {[%emt 0:00:55]} Kh5 {[%emt 0:00:26]} 41. Bg5 {[%emt 0:08:17]} Rd7+ {[%emt 0:03:49]} 42. Ke3 {[%emt 0:00:33]} Ne4 {[%emt 0:01:43]} 43. Kf4 {[%emt 0:03:15]} Rd4 {[%emt 0:10:20]} 44. Kxf5 {[%emt 0:09:38]} Nxg3+ {[%emt 0:00:02]} 45. Ke6 {[%emt 0:01:46]} h6 {[%emt 0:05:11]} 46. Be7 {[%emt 0:00:26]} Re4+ {[%emt 0:02:56]} 47. Kf7 {[%emt 0:00:26]} g6 {[%emt 0:00:01]} 48. Bd8 {[%emt 0:02:36]} Rf4+ {[%emt 0:02:45]} 49. Ke6 {[%emt 0:02:49]} Rb4 {[%emt 0:01:42]} 50. Kf7 {[%emt 0:02:31]} Rb7+ {[%emt 0:00:35]} 51. Ke6 {[%emt 0:00:25]} Nf5 {[%emt 0:01:38]} 52. Ra4 {[%emt 0:00:36]} Rb8 {[%emt 0:00:55]} 53. Bf6 {[%emt 0:01:38]} Rb6+ {[%emt 0:00:26]} 54. Ke5 {[%emt 0:00:34]} Nd6 {[%emt 0:00:09]} 55. Kf4 {[%emt 0:01:15]} Rb5 {[%emt 0:01:02]} 56. Kg3 {[%emt 0:00:56]} Nf5+ {[%emt 0:00:26]} 57. Kh3 {[%emt 0:00:30]} Rb3+ {[%emt 0:00:09]} 58. Kh2 {[%emt 0:00:18]} Ne3 {[%emt 0:00:22]} 59. Bd8 {[%emt 0:00:44]} Rc3 {[%emt 0:00:31]} 60. Ra5+ {[%emt 0:00:25]} Kg4 {[%emt 0:00:26]} 61. Ra6 {[%emt 0:00:42]} Kf3 {[%emt 0:00:48]} 62. Rf6+ {[%emt 0:00:27]} Nf5 {[%emt 0:00:49]} 63. Rxg6 {[%emt 0:00:47]} Rc2+ {[%emt 0:00:17]} 64. Kh3 {[%emt 0:00:35]} Rc1 {[%emt 0:00:12]} 65. Kh2 {[%emt 0:00:08]} Rd1 {[%emt 0:00:57]} 66. Ba5 {[%emt 0:00:39]} Rd4 {[%emt 0:00:37]} 67. Rf6 {[%emt 0:00:46]} Rxh4+ {[%emt 0:00:16]} 68. Kg1 {[%emt 0:00:00]} Rg4+ {[%emt 0:00:30]} 69. Kh1 {[%emt 0:00:26]} Rf4 {[%emt 0:00:16]} 70. Kg1 {[%emt 0:00:43]} Kg4 {[%emt 0:00:52]} 71. Bd2 {[%emt 0:00:21]} Ra4 {[%emt 0:02:18]} 72. Bxh6 {[%emt 0:00:30]} 1/2-1/2